fUSD/lending_fUSD_20240714
["ID","MTS","AMOUNT","RATE_DAILY","PERIOD"]
[332036672,1720939906670,-503.36,0.00013972,2]
[332036673,1720939906679,-500.0,0.00013972,2]
[332036674,1720939906689,-500.0,0.00013972,2]
[332036675,1720939906698,-500.0,0.00013972,2]
[332036676,1720939906708,-500.0,0.00013972,2]
[332036677,1720939906717,-574.9,0.00013972,2]
[332036678,1720939906726,-535.84,0.00013972,2]
[332036679,1720939906736,-2000.0,0.00013973,3]
[332036680,1720939906746,-200.0,0.00013973,2]
[332036681,1720939906755,-9047.0,0.00013993,2]
[332036682,1720939906764,-150.0,0.00013999,2]
[332036683,1720939906773,-5111.82314239,0.00013999,2]
[332036684,1720939906782,-432.1087812,0.00014,2]
[332036685,1720939906792,-2640350.11025487,0.00014,2]
[332036686,1720939907598,-3592.63866297,0.00014,2]
[332036687,1720939908385,-424.94,0.00013178,2]
[332036688,1720939908395,-500.0,0.00013698,2]
[332036689,1720939908405,-500.0,0.00013698,2]
[332036690,1720939908415,-151.0,0.00013698,2]
[332036691,1720939908424,-151.0,0.00013698,2]
[332036692,1720939908434,-500.0,0.00013698,2]
[332036693,1720939908444,-22.20542306,0.00013698,2]
[332036694,1720939909850,-529.19,0.00013178,2]
[332036695,1720939909860,-128.79457694,0.00013698,2]
[332036696,1720939909871,-151.900626,0.00013698,2]
[332036697,1720939909881,-500.0,0.00013698,2]
[332036698,1720939909890,-500.0,0.00013698,2]
[332036699,1720939909900,-500.0,0.00013698,2]
[332036700,1720939909910,-9830.8528877,0.00013698,2]
[332036701,1720939909920,-500.0,0.00013753,2]
[332036702,1720939909931,-500.0,0.00013753,2]
[332036703,1720939909942,-500.0,0.00013753,2]
[332036704,1720939909952,-500.0,0.00013753,2]
[332036705,1720939909962,-620.46193011,0.00013808,2]
[332036706,1720939909971,-332.39210797,0.00013808,2]
[332036707,1720939910066,-167.60789203,0.00013808,2]
[332036708,1720939910076,-500.0,0.00013808,2]
[332036709,1720939910086,-500.0,0.00013863,2]
[332036710,1720939910096,-500.0,0.000139,2]
[332036711,1720939910106,-257.3382488,0.00013917,2]
[332036712,1720939910116,-312.34762256,0.00013917,2]
[332036713,1720939910126,-499.64,0.00013917,2]
[332036714,1720939910136,-725.13394533,0.00014,2]
[332036715,1720939911571,-460.03293356,0.0001212,2]
[332036716,1720939911582,-614.33005504,0.0001212,2]
[332036717,1720939911591,-142.35350556,0.00013,2]
[332036718,1720939911603,-1107.64649444,0.00013,2]
[332036719,1720939911612,-165.09,0.00013178,2]
[332036720,1720939911622,-500.0,0.00013698,2]
[332036721,1720939911632,-500.0,0.00013698,2]
[332036722,1720939911642,-500.0,0.00013698,2]
[332036723,1720939911652,-500.0,0.00013698,2]
[332036724,1720939911662,-528.03,0.00013698,2]
[332036725,1720939911672,-151.0,0.00013698,2]
[332036726,1720939911681,-500.0,0.00013698,2]
[332036727,1720939911691,-151.0,0.00013698,2]
[332036728,1720939911701,-151.0,0.00013698,2]
[332036729,1720939911710,-500.0,0.00013698,2]
[332036730,1720939911720,-151.0,0.00013698,2]
[332036731,1720939911730,-151.0,0.00013698,2]
[332036732,1720939911739,-151.0,0.00013698,2]
[332036733,1720939911749,-500.0,0.00013698,2]
[332036734,1720939911759,-500.0,0.00013698,2]
[332036735,1720939911769,-500.0,0.00013698,2]
[332036736,1720939911779,-500.0,0.00013698,2]
[332036737,1720939911788,-500.0,0.00013698,2]
[332036738,1720939911798,-500.0,0.00013698,2]
[332036739,1720939911808,-500.0,0.00013698,2]
[332036740,1720939911817,-500.0,0.00013698,2]
[332036741,1720939911827,-500.0,0.00013698,2]
[332036742,1720939911837,-493.46027,0.00013699,2]
[332036743,1720939912398,-493.46027,0.00013699,2]
[332036744,1720939912423,-493.46027,0.00013699,2]
[332036745,1720939912444,-493.46027,0.00013699,2]
[332036746,1720939912462,-493.46027,0.00013699,2]
[332036747,1720939912478,-500.0,0.00013753,2]
[332036748,1720939912488,-500.0,0.00013753,2]
[332036749,1720939912498,-500.0,0.00013753,2]
[332036750,1720939912508,-528.03,0.00013753,2]
[332036751,1720939912517,-500.0,0.00013753,2]
[332036752,1720939912526,-529.84,0.00013753,2]
[332036753,1720939912536,-500.0,0.00013753,2]
[332036754,1720939912546,-264.64,0.00013753,2]
[332036755,1720939912556,-500.0,0.00013753,2]
[332036756,1720939912567,-500.0,0.00013753,2]
[332036757,1720939912577,-500.0,0.00013753,2]
[332036758,1720939912587,-493.46027,0.00013753,2]
[332036759,1720939912596,-500.0,0.00013753,2]
[332036760,1720939912606,-500.0,0.00013753,2]
[332036761,1720939912615,-493.46027,0.00013753,2]
[332036762,1720939912626,-500.0,0.00013808,2]
[332036763,1720939912635,-500.0,0.00013808,2]
[332036764,1720939912645,-500.0,0.00013808,2]
[332036765,1720939912654,-500.0,0.00013808,2]
[332036766,1720939912664,-528.03,0.00013808,2]
[332036767,1720939912674,-500.0,0.00013808,2]
[332036768,1720939912684,-500.0,0.00013808,2]
[332036769,1720939912694,-500.0,0.00013808,2]
[332036770,1720939912703,-412.9108482,0.00013808,2]
[332036771,1720939912712,-500.0,0.00013808,2]
[332036772,1720939912722,-500.0,0.00013863,2]
[332036773,1720939912731,-355.86,0.00013863,2]
[332036774,1720939912741,-500.0,0.00013863,2]
[332036775,1720939912751,-500.0,0.00013863,2]
[332036776,1720939912762,-500.0,0.00013863,2]
[332036777,1720939912772,-528.03,0.00013863,2]
[332036778,1720939912781,-500.0,0.00013863,2]
[332036779,1720939912791,-500.0,0.00013917,2]
[332036780,1720939912801,-500.0,0.00013917,2]
[332036781,1720939912811,-338.32,0.00013917,2]
[332036782,1720939912820,-528.03,0.00013917,2]
[332036783,1720939912830,-500.0,0.00013917,2]
[332036784,1720939912840,-528.03,0.00013972,2]
[332036785,1720939912850,-43235.86366294,0.00014,2]
[332036786,1720940467188,270.86390095,0.00025,60]
[332036822,1720941038125,-456.15,0.00010174,2]
[332036823,1720941038135,-162.54102814,0.00010712,2]
[332036824,1720941038145,-674.04080023,0.00010912,2]
[332036825,1720941038338,-23.65142639,0.00010912,2]
[332036827,1720941038346,-167.74,0.00010959,2]
[332036828,1720941038355,-838.72,0.00010959,2]
[332036830,1720941038365,-697.69222663,0.00010998,2]
[332036831,1720941038374,-300.0,0.00011011,2]
[332036833,1720941038383,-500.0,0.00011012,2]
[332036834,1720941038392,-500.0,0.00011012,2]
[332036836,1720941038401,-500.0,0.00011012,2]
[332036837,1720941038410,-500.0,0.00011012,2]
[332036839,1720941038420,-150.0,0.00011097,2]
[332036841,1720941038429,-2900.1,0.00011098,2]
[332036842,1720941038438,-917.22327281,0.00011098,2]
[332037015,1720941040330,-1609.19616097,0.00010612,2]
[332037017,1720941040340,-1634.70383903,0.00011098,2]
[332037020,1720941040351,-311.47,0.00011098,2]
[332037022,1720941040363,-1103.82294766,0.00011098,2]
[332037024,1720941040372,-410.88428034,0.00011098,2]
[332037026,1720941040381,-482.87871356,0.00011098,2]
[332037028,1720941040391,-155.07663078,0.00011098,2]
[332037030,1720941040400,-1266.09237124,0.00011098,2]
[332037032,1720941040409,-2842.35473255,0.00011098,2]
[332037033,1720941040418,-222.22403384,0.00011098,2]
[332037036,1720941040428,-155.0,0.00011098,2]
[332037038,1720941040438,-150.99,0.00011098,2]
[332037039,1720941040447,-6699.60089959,0.00011098,2]
[332037041,1720941040456,-499.99,0.00011098,2]
[332037043,1720941040466,-190.15,0.00011098,2]
[332037045,1720941040475,-2142.4852451,0.00011098,2]
[332037047,1720941040486,-250.0,0.00012057,2]
[332037050,1720941040496,-420.0,0.000121,2]
[332037052,1720941040505,-216.0,0.00012134,2]
[332037073,1720941040767,-250.0,0.00012199,2]
[332037074,1720941040781,-217.84,0.00012265,2]
[332037075,1720941040791,-297.26848214,0.00012302,2]
[332037077,1720941040801,-297.26848214,0.00012302,2]
[332037079,1720941040811,-456.15,0.00012438,2]
[332037081,1720941040821,-570.615,0.00012477,2]
[332037083,1720941040830,-784.0,0.00012481,2]
[332037085,1720941040840,-11008.0642,0.0001254,2]
[332037087,1720941040850,-500.0,0.00012656,2]
[332037089,1720941040859,-500.0,0.00012656,2]
[332037091,1720941040868,-500.0,0.00012656,2]
[332037093,1720941040877,-500.0,0.00012656,2]
[332037095,1720941040887,-240.12,0.00012846,2]
[332037097,1720941040896,-400.0,0.00013,4]
[332037098,1720941040905,-800.0,0.000131,4]
[332037100,1720941040914,-424.94,0.00013178,2]
[332037102,1720941040924,-1057.9,0.00013178,2]
[332037104,1720941040933,-330.02,0.00013178,2]
[332037106,1720941040943,-669.234055,0.00013199,2]
[332037108,1720941040953,-353.572813,0.00013199,2]
[332037111,1720941040962,-451.867419,0.00013199,2]
[332037112,1720941040972,-1200.0,0.000132,4]
[332037114,1720941040981,-292.872,0.00013272,2]
[332037116,1720941040991,-1255.567,0.00013272,2]
[332037118,1720941041001,-291.172,0.00013272,2]
[332037120,1720941041010,-1253.0,0.00013272,2]
[332037122,1720941041021,-150.0,0.00013272,2]
[332037124,1720941041030,-587.0,0.00013296,2]
[332037126,1720941041039,-1600.0,0.000133,4]
[332037128,1720941041049,-669.234055,0.00013364,2]
[332037130,1720941041058,-353.572813,0.00013364,2]
[332037132,1720941041067,-451.867419,0.00013364,2]
[332037134,1720941041077,-2100.0,0.000134,4]
[332037136,1720941041087,-400.0,0.000135,4]
[332037138,1720941041097,-2142.78275778,0.00013516,2]
[332037140,1720941041106,-669.234055,0.00013529,2]
[332037142,1720941041116,-353.572813,0.00013529,2]
[332037144,1720941041125,-166.74334798,0.00013529,2]
[332037158,1720941041246,-285.12407102,0.00013529,2]
[332037160,1720941041256,-419.40981592,0.00013543,2]
[332037161,1720941041265,-220.67,0.00013589,3]
[332037163,1720941041274,-9.60538173,0.00013598,2]
[332037166,1720941041285,-313.56394848,0.00013598,2]
[332037168,1720941041295,-1000.0,0.00013598,2]
[332037170,1720941041306,-222.6918,0.00013598,2]
[332037172,1720941041317,-282.7298,0.00013598,2]
[332037174,1720941041326,-1836.81958632,0.00013598,2]
[332037179,1720941041363,-1429.58311368,0.00013598,2]
[332037181,1720941041373,-2502.2336,0.00013598,2]
[332037183,1720941041383,-400.0,0.000136,4]
[332037185,1720941041392,-216.0,0.00013651,2]
[332037186,1720941041402,-181.4307852,0.00013653,2]
[332037188,1720941041411,-167.05516023,0.00013653,2]
[332037190,1720941041421,-669.234055,0.00013694,2]
[332037192,1720941041431,-353.572813,0.00013694,2]
[332037194,1720941041441,-451.867419,0.00013694,2]
[332037196,1720941041451,-500.0,0.00013698,2]
[332037199,1720941041462,-500.0,0.00013698,2]
[332037201,1720941041472,-200.0,0.00013698,2]
[332037203,1720941041481,-500.0,0.00013698,2]
[332037205,1720941041491,-500.0,0.00013698,2]
[332037206,1720941041500,-500.0,0.00013698,2]
[332037208,1720941041510,-548.74,0.00013698,2]
[332037210,1720941041519,-500.0,0.00013698,2]
[332037212,1720941041528,-500.0,0.00013698,2]
[332037214,1720941041537,-500.0,0.00013698,2]
[332037216,1720941041547,-500.0,0.00013698,2]
[332037218,1720941041556,-500.0,0.00013698,2]
[332037220,1720941041566,-500.0,0.00013698,2]
[332037222,1720941041575,-500.0,0.00013698,2]
[332037224,1720941041584,-500.0,0.00013698,2]
[332037226,1720941041593,-500.0,0.00013698,2]
[332037228,1720941041602,-500.0,0.00013698,2]
[332037230,1720941041611,-500.0,0.00013698,2]
[332037232,1720941041620,-500.0,0.00013698,2]
[332037234,1720941041630,-500.0,0.00013698,2]
[332037236,1720941041642,-500.0,0.00013698,2]
[332037238,1720941041652,-500.0,0.00013698,2]
[332037240,1720941041661,-500.0,0.00013698,2]
[332037242,1720941041670,-550.72244175,0.00013698,2]
[332037244,1720941041685,-80.89755825,0.00013698,2]
[332037246,1720941041694,-250.61191886,0.00013698,2]
[332037252,1720941041735,-249.38808114,0.00013698,2]
[332037253,1720941041744,-500.0,0.00013698,2]
[332037255,1720941041754,-500.0,0.00013698,2]
[332037257,1720941041763,-500.0,0.00013698,2]
[332037260,1720941041774,-500.0,0.00013698,2]
[332037261,1720941041783,-500.0,0.00013698,2]
[332037263,1720941041793,-500.0,0.00013698,2]
[332037265,1720941041803,-500.0,0.00013698,2]
[332037267,1720941041812,-500.0,0.00013698,2]
[332037269,1720941041821,-500.0,0.00013698,2]
[332037271,1720941041830,-827.47,0.00013698,2]
[332037273,1720941041839,-500.0,0.00013698,2]
[332037275,1720941041848,-500.0,0.00013698,2]
[332037277,1720941041858,-500.0,0.00013698,2]
[332037279,1720941041867,-426.70048434,0.00013698,2]
[332037281,1720941041876,-500.0,0.00013698,2]
[332037283,1720941041887,-564.06,0.00013698,2]
[332037285,1720941041897,-500.0,0.00013698,2]
[332037287,1720941041906,-500.0,0.00013698,2]
[332037289,1720941041915,-500.0,0.00013698,2]
[332037291,1720941041925,-500.0,0.00013698,2]
[332037293,1720941041934,-500.0,0.00013698,2]
[332037295,1720941041943,-500.0,0.00013698,2]
[332037297,1720941041953,-500.0,0.00013698,2]
[332037299,1720941041962,-500.0,0.00013698,2]
[332037301,1720941041971,-500.0,0.00013698,2]
[332037303,1720941041981,-500.0,0.00013698,2]
[332037305,1720941041991,-500.0,0.00013698,2]
[332037307,1720941042000,-500.0,0.00013698,2]
[332037309,1720941042010,-500.0,0.00013698,2]
[332037311,1720941042020,-500.0,0.00013698,2]
[332037313,1720941042030,-611.58,0.00013698,2]
[332037315,1720941042040,-500.0,0.00013698,2]
[332037317,1720941042050,-500.0,0.00013698,2]
[332037319,1720941042059,-203.61932943,0.00013698,2]
[332037320,1720941042068,-500.0,0.00013698,2]
[332037322,1720941042078,-500.0,0.00013698,2]
[332037325,1720941042087,-552.08,0.00013698,2]
[332037327,1720941042098,-500.0,0.00013698,2]
[332037329,1720941042108,-500.0,0.00013698,2]
[332037331,1720941042117,-500.0,0.00013698,2]
[332037333,1720941042127,-561.13722538,0.00013698,2]
[332037335,1720941042137,-500.0,0.00013698,2]
[332037337,1720941042146,-500.0,0.00013698,2]
[332037339,1720941042155,-500.0,0.00013698,2]
[332037340,1720941042165,-500.0,0.00013698,2]
[332037342,1720941042174,-500.0,0.00013698,2]
[332037344,1720941042184,-641.58,0.00013698,2]
[332037346,1720941042193,-500.0,0.00013698,2]
[332037348,1720941042202,-397.72134525,0.00013698,2]
[332037350,1720941042212,-884.14,0.00013698,2]
[332037352,1720941042221,-500.0,0.00013698,2]
[332037354,1720941042233,-500.0,0.00013698,2]
[332037356,1720941042244,-500.0,0.00013698,2]
[332037358,1720941042255,-500.0,0.00013698,2]
[332037360,1720941042264,-500.0,0.00013698,2]
[332037362,1720941042274,-500.0,0.00013698,2]
[332037364,1720941042284,-500.0,0.00013698,2]
[332037366,1720941042293,-500.0,0.00013698,2]
[332037368,1720941042303,-500.0,0.00013698,2]
[332037370,1720941042313,-500.0,0.00013698,2]
[332037372,1720941042322,-500.0,0.00013698,2]
[332037374,1720941042332,-500.0,0.00013698,2]
[332037376,1720941042341,-500.0,0.00013698,2]
[332037378,1720941042351,-500.0,0.00013698,2]
[332037380,1720941042361,-500.0,0.00013698,2]
[332037382,1720941042370,-500.0,0.00013698,2]
[332037384,1720941042380,-870.84,0.00013698,2]
[332037386,1720941042390,-500.0,0.00013698,2]
[332037387,1720941042399,-500.0,0.00013698,2]
[332037388,1720941042409,-534.76,0.00013698,2]
[332037389,1720941042418,-500.0,0.00013698,2]
[332037390,1720941042428,-500.0,0.00013698,2]
[332037391,1720941042437,-552.59,0.00013698,2]
[332037392,1720941042447,-500.0,0.00013698,2]
[332037393,1720941042456,-500.0,0.00013698,2]
[332037395,1720941042466,-500.0,0.00013698,2]
[332037396,1720941042475,-618.47,0.00013698,2]
[332037398,1720941042484,-500.0,0.00013698,2]
[332037400,1720941042494,-500.0,0.00013698,2]
[332037402,1720941042503,-500.0,0.00013698,2]
[332037404,1720941042513,-500.0,0.00013698,2]
[332037406,1720941042522,-500.0,0.00013698,2]
[332037408,1720941042532,-500.0,0.00013698,2]
[332037410,1720941042542,-696.12,0.00013698,2]
[332037412,1720941042551,-500.0,0.00013698,2]
[332037414,1720941042560,-500.0,0.00013698,2]
[332037416,1720941042570,-500.0,0.00013698,2]
[332037418,1720941042579,-500.0,0.00013698,2]
[332037420,1720941042589,-500.0,0.00013698,2]
[332037422,1720941042598,-595.42,0.00013698,2]
[332037424,1720941042607,-500.0,0.00013698,2]
[332037426,1720941042617,-500.0,0.00013698,2]
[332037428,1720941042626,-500.0,0.00013698,2]
[332037430,1720941042638,-500.0,0.00013698,2]
[332037432,1720941042647,-500.0,0.00013698,2]
[332037434,1720941042656,-500.0,0.00013698,2]
[332037436,1720941042666,-500.0,0.00013698,2]
[332037437,1720941042675,-500.0,0.00013698,2]
[332037439,1720941042684,-500.0,0.00013698,2]
[332037441,1720941042693,-500.0,0.00013698,2]
[332037443,1720941042702,-500.0,0.00013698,2]
[332037445,1720941042713,-500.0,0.00013698,2]
[332037447,1720941042723,-500.0,0.00013698,2]
[332037450,1720941042733,-500.0,0.00013698,2]
[332037452,1720941042743,-500.0,0.00013698,2]
[332037453,1720941042753,-500.0,0.00013698,2]
[332037455,1720941042762,-500.0,0.00013698,2]
[332037457,1720941042771,-864.4,0.00013698,2]
[332037459,1720941042782,-518.23,0.00013698,2]
[332037461,1720941042791,-500.0,0.00013698,2]
[332037463,1720941042800,-500.0,0.00013698,2]
[332037465,1720941042810,-500.0,0.00013698,2]
[332037467,1720941042819,-175.08150957,0.00013698,2]
[332037469,1720941042829,-502.47063337,0.00013698,2]
[332037471,1720941042839,-500.0,0.00013698,2]
[332037473,1720941042848,-500.0,0.00013698,2]
[332037475,1720941042857,-500.0,0.00013698,2]
[332037477,1720941042868,-500.0,0.00013698,2]
[332037479,1720941042877,-500.0,0.00013698,2]
[332037481,1720941042887,-500.0,0.00013698,2]
[332037483,1720941042899,-500.0,0.00013698,2]
[332037485,1720941042909,-500.0,0.00013698,2]
[332037487,1720941042919,-500.0,0.00013698,2]
[332037489,1720941042928,-500.0,0.00013698,2]
[332037491,1720941042938,-500.0,0.00013698,2]
[332037493,1720941042948,-500.0,0.00013698,2]
[332037495,1720941042957,-500.0,0.00013698,2]
[332037497,1720941042967,-500.0,0.00013698,2]
[332037499,1720941042977,-500.0,0.00013698,2]
[332037501,1720941042986,-500.0,0.00013698,2]
[332037503,1720941042997,-500.0,0.00013698,2]
[332037505,1720941043007,-669.78,0.00013698,2]
[332037507,1720941043019,-500.0,0.00013698,2]
[332037509,1720941043029,-638.2,0.00013698,2]
[332037511,1720941043039,-500.0,0.00013698,2]
[332037513,1720941043048,-500.0,0.00013698,2]
[332037515,1720941043058,-500.0,0.00013698,2]
[332037517,1720941043067,-500.0,0.00013698,2]
[332037519,1720941043077,-952.4,0.00013698,2]
[332037522,1720941043088,-718.69,0.00013698,2]
[332037524,1720941043099,-500.0,0.00013698,2]
[332037526,1720941043109,-500.0,0.00013698,2]
[332037528,1720941043119,-500.0,0.00013698,2]
[332037530,1720941043128,-1010.42,0.00013698,2]
[332037532,1720941043138,-500.0,0.00013698,2]
[332037533,1720941043147,-662.1,0.00013698,2]
[332037535,1720941043157,-500.0,0.00013698,2]
[332037537,1720941043167,-548.55,0.00013698,2]
[332037539,1720941043175,-500.0,0.00013698,2]
[332037541,1720941043184,-500.0,0.00013698,2]
[332037543,1720941043194,-500.0,0.00013698,2]
[332037545,1720941043203,-796.7,0.00013698,2]
[332037547,1720941043213,-548.93,0.00013698,2]
[332037549,1720941043222,-500.0,0.00013698,2]
[332037551,1720941043232,-578.68,0.00013698,2]
[332037553,1720941043241,-500.0,0.00013698,2]
[332037555,1720941043251,-630.75,0.00013698,2]
[332037557,1720941043261,-666.55,0.00013698,2]
[332037559,1720941043270,-500.0,0.00013698,2]
[332037561,1720941043280,-500.0,0.00013698,2]
[332037562,1720941043289,-500.0,0.00013698,2]
[332037564,1720941043298,-500.0,0.00013698,2]
[332037566,1720941043309,-500.0,0.00013698,2]
[332037568,1720941043319,-500.0,0.00013698,2]
[332037570,1720941043329,-500.0,0.00013698,2]
[332037573,1720941043338,-500.0,0.00013698,2]
[332037574,1720941043348,-567.23,0.00013698,2]
[332037576,1720941043358,-500.0,0.00013698,2]
[332037579,1720941043367,-500.0,0.00013698,2]
[332037580,1720941043378,-643.88,0.00013698,2]
[332037583,1720941043388,-500.0,0.00013698,2]
[332037585,1720941043398,-500.0,0.00013698,2]
[332037587,1720941043407,-801.98,0.00013698,2]
[332037588,1720941043417,-500.0,0.00013698,2]
[332037590,1720941043426,-500.0,0.00013698,2]
[332037592,1720941043435,-599.86,0.00013698,2]
[332037594,1720941043444,-500.0,0.00013698,2]
[332037596,1720941043454,-1582.65,0.00013698,2]
[332037598,1720941043464,-500.0,0.00013698,2]
[332037600,1720941043474,-500.0,0.00013698,2]
[332037602,1720941043484,-538.43007561,0.00013698,2]
[332037604,1720941043496,-500.0,0.00013698,2]
[332037606,1720941043505,-703.38,0.00013698,2]
[332037608,1720941043516,-528.52,0.00013698,2]
[332037610,1720941043526,-500.0,0.00013698,2]
[332037612,1720941043535,-500.0,0.00013698,2]
[332037614,1720941043545,-500.0,0.00013698,2]
[332037616,1720941043554,-500.0,0.00013698,2]
[332037618,1720941043564,-513.65,0.00013698,2]
[332037620,1720941043573,-931.58,0.00013698,2]
[332037622,1720941043583,-500.0,0.00013698,2]
[332037624,1720941043592,-500.0,0.00013698,2]
[332037626,1720941043602,-500.0,0.00013698,2]
[332037628,1720941043612,-500.0,0.00013698,2]
[332037630,1720941043622,-500.0,0.00013698,2]
[332037632,1720941043632,-851.23,0.00013698,2]
[332037634,1720941043646,-500.0,0.00013698,2]
[332037636,1720941043656,-500.0,0.00013698,2]
[332037638,1720941043665,-500.0,0.00013698,2]
[332037640,1720941043675,-336.69939741,0.00013698,2]
[332037642,1720941043685,-500.0,0.00013698,2]
[332037643,1720941043695,-500.0,0.00013698,2]
[332037646,1720941043705,-1850.58,0.00013698,2]
[332037648,1720941043715,-285.60267694,0.00013698,2]
[332037650,1720941043725,-658.64,0.00013698,2]
[332037652,1720941043735,-500.0,0.00013698,2]
[332037654,1720941043746,-500.0,0.00013698,2]
[332037656,1720941043755,-1482.27,0.00013698,2]
[332037658,1720941043765,-500.0,0.00013698,2]
[332037660,1720941043774,-500.0,0.00013698,2]
[332037661,1720941043783,-500.0,0.00013698,2]
[332037663,1720941043792,-618.64,0.00013698,2]
[332037665,1720941043801,-678.07,0.00013698,2]
[332037667,1720941043810,-500.0,0.00013698,2]
[332037669,1720941043819,-500.0,0.00013698,2]
[332037671,1720941043829,-783.52,0.00013698,2]
[332037673,1720941043838,-521.50085604,0.00013698,2]
[332037675,1720941043847,-500.0,0.00013698,2]
[332037677,1720941043856,-500.0,0.00013698,2]
[332037679,1720941043866,-500.0,0.00013698,2]
[332037681,1720941043875,-500.0,0.00013698,2]
[332037683,1720941043885,-500.0,0.00013698,2]
[332037685,1720941043895,-500.0,0.00013698,2]
[332037687,1720941043904,-500.0,0.00013698,2]
[332037689,1720941043914,-851.97,0.00013698,2]
[332037691,1720941043923,-694.56,0.00013698,2]
[332037693,1720941043933,-540.65,0.00013698,2]
[332037694,1720941043943,-540.0,0.00013698,2]
[332037695,1720941043952,-1133.95,0.00013698,2]
[332037696,1720941043962,-500.0,0.00013698,2]
[332037697,1720941043971,-892.61,0.00013698,2]
[332037698,1720941043981,-500.0,0.00013698,2]
[332037699,1720941043992,-500.0,0.00013698,2]
[332037700,1720941044002,-500.0,0.00013698,2]
[332037701,1720941044011,-926.44,0.00013698,2]
[332037702,1720941044021,-500.0,0.00013698,2]
[332037703,1720941044031,-500.0,0.00013698,2]
[332037704,1720941044041,-176.8817542,0.00013698,2]
[332037705,1720941044051,-540.26162802,0.00013698,2]
[332037706,1720941044060,-562.12742056,0.00013698,2]
[332037707,1720941044070,-500.0,0.00013698,2]
[332037708,1720941044080,-500.0,0.00013698,2]
[332037709,1720941044090,-1041.93,0.00013698,2]
[332037710,1720941044100,-829.73,0.00013698,2]
[332037711,1720941044109,-500.0,0.00013698,2]
[332037712,1720941044119,-500.0,0.00013698,2]
[332037713,1720941044128,-500.0,0.00013698,2]
[332037714,1720941044138,-500.0,0.00013698,2]
[332037715,1720941044148,-645.8,0.00013698,2]
[332037716,1720941044157,-650.21,0.00013698,2]
[332037717,1720941044167,-930.59,0.00013698,2]
[332037718,1720941044177,-500.0,0.00013698,2]
[332037720,1720941044186,-821.09,0.00013698,2]
[332037722,1720941044196,-500.0,0.00013698,2]
[332037724,1720941044205,-500.0,0.00013698,2]
[332037726,1720941044216,-500.0,0.00013698,2]
[332037728,1720941044225,-644.97,0.00013698,2]
[332037730,1720941044235,-528.32,0.00013698,2]
[332037732,1720941044249,-500.0,0.00013698,2]
[332037734,1720941044259,-500.0,0.00013698,2]
[332037736,1720941044269,-1236.87,0.00013698,2]
[332037738,1720941044279,-500.0,0.00013698,2]
[332037740,1720941044290,-509.24724293,0.00013698,2]
[332037742,1720941044299,-1276.97,0.00013698,2]
[332037744,1720941044311,-500.0,0.00013698,2]
[332037746,1720941044321,-500.0,0.00013698,2]
[332037748,1720941044331,-539.76,0.00013698,2]
[332037750,1720941044341,-500.0,0.00013698,2]